Cogmind - Beta 12 @@@ ROGUE MODE // 2023.05.24 @ 19:45:37 Player: Mr Goldstein Result: Self-destructed Performance ------------- Evolutions (1) 500 Regions Visited (2) 400 Robots Destroyed (99) 495 Value Destroyed (1880) 1880 Prototype IDs (0) 0 Alien Tech Used (0) 0 Bonus (292) 292 TOTAL SCORE: 3567 Bonus ------- High Alert Combat Kills 292 Cogmind --------- Core Integrity 40/400 Matter 278/300 Energy 125/125 System Corruption 0% Temperature Cool (0) Movement Rolling (215) Ox9 Location -9/Materials Parts ------- > --- POWER (1) -------- Light Ion Engine > --- PROPULSION (2) --- Wheel > --- UTILITY (4) ------ Huge Storage Unit Power Shielding Light Armor Plating > --- WEAPON (2) ------- Light Assault Rifle Grenade Launcher > --- INVENTORY (25) --- Ion Engine Compact Wheel High-capacity Matter Pod (57) Assault Rifle Light Assault Rifle Light Assault Rifle Light Assault Rifle Light Assault Rifle Heavy Assault Rifle Heavy Assault Rifle Grenade Launcher Grenade Launcher Rocket Launcher Datajack Heavy Hammer Peak State ------------ > --- POWER ------------ Ion Engine > --- PROPULSION ------- Wheel Wheel > --- UTILITY ---------- Huge Storage Unit Power Shielding > --- WEAPON ----------- Grenade Launcher Heavy Hammer > --- INVENTORY -------- Wheel Wheel High-capacity Matter Pod Assault Rifle Light Assault Rifle Light Assault Rifle Light Assault Rifle Light Assault Rifle Grenade Launcher Grenade Launcher Grenade Launcher Datajack [Rating: 9] Favorites ----------- Power Ion Engine Engine Ion Engine Propulsion Wheel Wheel Wheel Utility Huge Storage Unit Storage Huge Storage Unit Protection Power Shielding Weapon Light Assault Rifle Ballistic Gun Light Assault Rifle Launcher Grenade Launcher Impact Weapon Heavy Hammer Build | -11 -10 -9 ------- Run | Jun Mat Mat Slots Evolved 2 | . . 2 Power . | . . . Propulsion . | . . . Utility 2 | . . 2 Weapon . | . . . Parts Attached 52 | 6 27 19 Power 3 | 1 1 1 Engine 3 | 1 1 1 Core . | . . . Reactor . | . . . Propulsion 8 | 2 3 3 Treads . | . . . Leg . | . . . Wheel 8 | 2 3 3 Hover . | . . . Flight . | . . . Utility 6 | 1 4 1 Device . | . . . Storage 4 | 1 3 . Processor . | . . . Hackware . | . . . Protection 2 | . 1 1 Artifact . | . . . Weapon 35 | 2 19 14 Energy Gun . | . . . Energy Cannon . | . . . Ballistic Gun 18 | 2 10 6 Ballistic Cannon . | . . . Launcher 16 | . 9 7 Special Weapon . | . . . Impact Weapon 1 | . . 1 Slashing Weapon . | . . . Piercing Weapon . | . . . Special Melee Weapon . | . . . Unidentified Prototypes . | . . . Corrupted Parts 1 | . 1 . System Corruption 10 | . 10 . Parts Lost 6 | . 1 5 Power . | . . . Propulsion 5 | . 1 4 Utility . | . . . Weapon 1 | . . 1 Highest Loss Streak 2 | . 1 2 To Critical Strikes . | . . . Average Slot Usage (%) 90 | . 97 72 Engine 13 | . 14 11 Wheel 24 | . 27 14 Storage 13 | . 14 11 Protection 12 | . 11 14 Ballistic Gun 18 | . 22 6 Launcher 7 | . 5 13 Naked Turns . | . . . Heaviest Build 92 | 13 92 92 Greatest Support 20 | 20 20 20 Greatest Overweight (x) 9 | . 8 9 Average Overweight (x) 4 | . 3 7 Largest Inventory Capacity 25 | 8 25 25 Average Capacity 24 | 6 23 25 Most Carried 15 | 2 11 15 Average Carried 9 | . 9 12 Final Capacity 25 | 8 25 25 Final Carried 15 | 1 11 15 Class Distribution -------------------- 89% | Mutant 10% | Scavenger-Mutant Dominant Class ---------------- Mutant | -10/Materials Mutant | -9/Materials Resources | -11 -10 -9 ----------- Run | Jun Mat Mat Matter Collected 2253 | 206 1347 700 Remotely . | . . . Salvage Created 2123 | . 1323 800 Parts 189 | . 125 64 Haulers Intercepted 4 | . 2 2 Recyclers Shooed . | . . . Parts Field Recycled . | . . . Retrieved Matter . | . . . Parts Self-Destructed . | . . . Prevented . | . . . Kills | -11 -10 -9 ------- Run | Jun Mat Mat Combat Hostiles Destroyed 51 | . 27 24 Guns 19 | . 12 7 AOE 31 | . 15 16 Classes Destroyed 11 | . 9 2 Worker 14 | . 11 3 Builder 13 | . 5 8 Tunneler 3 | . 2 1 Hauler 4 | . 2 2 Recycler 4 | . 3 1 Operator 5 | . 4 1 Watcher 5 | . 3 2 Swarmer 16 | . 6 10 Grunt 32 | . 21 11 Duelist 1 | . . 1 Sentry 2 | . . 2 Best Kill Streak 9 | . 6 9 Combat Bots Only 7 | . 4 7 Max Kills in Single Turn 3 | . 2 3 Gunslinging . | . . . Exploded 2 | . 2 2 Melee . | . . . Uniques/NPCs Destroyed . | . . . Combat | -11 -10 -9 -------- Run | Jun Mat Mat Damage Taken 1548 | . 658 890 Core 598 | . 238 360 Absorbed by Shields . | . . . Redirected to Shielding 28 | . 3 25 Core Remaining (%) 52 | 100 4 . Volleys Fired 189 | . 140 49 Largest 2 | . 2 2 Hottest 60 | . 60 60 Shots Fired 347 | . 268 79 Gun 265 | . 213 52 Cannon . | . . . Launcher 82 | . 55 27 Special . | . . . Kinetic 265 | . 213 52 Thermal . | . . . Explosive 82 | . 55 27 Electromagnetic . | . . . Robot Hit Streak 9 | . 9 7 Robot Miss Streak 4 | . 3 4 Penetration Max . | . . . Secondary Targets 2 | . 1 1 Max Gunslinging Chain 1 | . 1 1 Shots Hit Robots 185 | . 135 50 Core Hits 141 | . 95 46 Critical Kills 1 | . . 1 Critical Parts Destroyed 2 | . . 2 Critical Strikes 3 | . . 3 Smash 3 | . . 3 Melee Attacks 17 | . . 17 Impact 17 | . . 17 Slashing . | . . . Piercing . | . . . Sneak Attacks 7 | . . 7 Combat Hostiles . | . . . Follow-up Attacks . | . . . Damage Inflicted 5572 | . 2466 3106 Guns 1504 | . 1181 323 Cannons . | . . . Explosions 3163 | . 1285 1878 Melee 905 | . . 905 Ramming . | . . . Kinetic 1504 | . 1181 323 Thermal 228 | . . 228 Explosive 2923 | . 1273 1650 Electromagnetic 12 | . 12 . Impact 905 | . . 905 Slashing . | . . . Piercing . | . . . Highest Corruption 10 | . 10 . Average Corruption 10 | . 10 . Corruption Purged . | . . . Corruption Blocked . | . . . Effects 115 | . 115 . Message Errors 31 | . 31 . Matter Fused 21 | . 21 . Heat Flow Errors 13 | . 13 . Energy Discharges 15 | . 15 . Parts Rejected 1 | . 1 . Parts Fused 1 | . 1 . Data Loss (minor) 14 | . 14 . Data Loss (major) 5 | . 5 . Misfires 8 | . 8 . Alerts 1 | . 1 . Weapon Failures 5 | . 5 . Overload Shots . | . . . Overflow Damage 588 | . 19 569 Projectiles . | . . . Explosions 217 | . 19 198 Melee 371 | . . 371 Knockbacks 6 | . . 6 Impact 6 | . . 6 Kinetic . | . . . Secondary . | . . . Self-Inflicted Damage 150 | . 97 53 Shots 8 | . 5 3 Rammed . | . . . Targets Rammed . | . . . Kicked . | . . . Crushed . | . . . Highest Temperature 271 | . 271 24 Average Temperature 69 | . 83 4 Received Heat Transfer 465 | . 225 240 Siege Activations . | . . . Robots Corrupted . | . . . Combat Hostiles . | . . . Parts Fried 6 | . . 6 Impact Corruptions 13 | . . 13 Robots Melted . | . . . Combat Hostiles . | . . . Parts Melted . | . . . Heat Transferred 150 | . . 150 Parts Sabotaged . | . . . Parts Stolen . | . . . Parts Stripped . | . . . Power Chain Reactions . | . . . Missiles Intercepted . | . . . Alert | -11 -10 -9 ------- Run | Jun Mat Mat Peak Influence 877 | . 836 877 Initial 337 | . . 337 Average 590 | . 587 618 Maximum Alert Level 3 | . 3 3 Low Security (%) 8 | 100 11 . Level 1 10 | . 10 12 Level 2 41 | . 33 64 Level 3 38 | . 44 23 Level 4 . | . . . Level 5 . | . . . High Security . | . . . Max Security . | . . . Squads Dispatched 14 | . 10 4 Investigation 8 | . 6 2 Extermination . | . . . Reinforcement 6 | . 4 2 Assault . | . . . Garrison . | . . . Intercept . | . . . Searches Triggered . | . . . Construction Impeded . | . . . Haulers Reinforced . | . . . Active Scanning Responses . | . . . Cargo Convoy Interrupts . | . . . Stealth | -11 -10 -9 --------- Run | Jun Mat Mat Distress Signals 3 | . 2 1 Communications Jammed . | . . . Distress Signals . | . . . Times Spotted 67 | . 34 33 Peak Tracking Total 6 | . 4 6 Tactical Retreats 3 | . 2 1 Traps | -11 -10 -9 ------- Run | Jun Mat Mat Traps Triggered 4 | . 4 . Indirectly . | . . . Trap Hack Attempts . | . . . Triggered . | . . . Disarmed . | . . . Reprogrammed . | . . . Reused . | . . . Traps Extracted . | . . . Installed . | . . . Triggered . | . . . Machines | -11 -10 -9 ---------- Run | Jun Mat Mat Machines Disabled 19 | . 16 3 Max in Single Turn 3 | . 3 2 Machines Repaired . | . . . Machines Sabotaged . | . . . Overloaded Fab Kills . | . . . Hacking | -11 -10 -9 --------- Run | Jun Mat Mat Machines Accessed 4 | . 4 . Terminals 3 | . 3 . Fabricators . | . . . Repair Stations . | . . . Recycling Units 1 | . 1 . Scanalyzers . | . . . Garrison Access . | . . . Total Hacks 8 | . 8 . Successful 5 | . 5 . Failed 3 | . 3 . Catastrophic 1 | . 1 . Database Lockouts . | . . . Manual 9 | . 9 . Terminals 7 | . 7 . Fabricators . | . . . Repair Stations . | . . . Recycling Units 1 | . 1 . Scanalyzers . | . . . Garrison Access . | . . . Terminal Hacks 2 | . 2 . Robot Analysis 2 | . 2 . Fabricator Hacks . | . . . Repair Station Hacks . | . . . Recycling Unit Hacks . | . . . Scanalyzer . | . . . Garrison Access Hacks . | . . . Unauthorized Hacks 3 | . 3 . Terminals 2 | . 2 . Search 2 | . 2 . Fabricators . | . . . Repair Stations . | . . . Recycling Units 1 | . 1 . Tunnel 1 | . 1 . Scanalyzers . | . . . Garrison Access . | . . . Data Cores Recovered . | . . . Used . | . . . Hacking Detections 2 | . 2 . Full Trace Events 1 | . 1 . Feedback Events . | . . . Feedback Blocked . | . . . Robot Schematics Acquired . | . . . Robots Built . | . . . Authchips . | . . . Time . | . . . Total Robot Build Rating . | . . . Part Schematics Acquired . | . . . Parts Built . | . . . Authchips . | . . . Time . | . . . Total Part Build Rating . | . . . Parts Repaired . | . . . Time . | . . . Parts Recycled . | . . . Recycled Matter . | . . . Retrieved Matter . | . . . Retrieved Components . | . . . Parts Scanalyzed . | . . . Part Schematics Acquired . | . . . Parts Damaged . | . . . Bothacking | -11 -10 -9 ------------ Run | Jun Mat Mat Used RIF Installer . | . . . Robots Hacked . | . . . Non-combat . | . . . Combat . | . . . Robot Hacks Applied . | . . . Relay Couplers Released . | . . . Fabnet Peak Effective % . | . . . Robots Rewired . | . . . Allies Hacked . | . . . Hacks Repelled . | . . . Allies | -11 -10 -9 -------- Run | Jun Mat Mat Total Allies . | . . . Largest Group . | . . . Highest-Rated Group . | . . . Highest-Rated Ally . | . . . Total Orders . | . . . Ally Attacks . | . . . Total Damage . | . . . Kills . | . . . Allies Corrupted . | . . . Allies Melted . | . . . Intel | -11 -10 -9 ------- Run | Jun Mat Mat Robot Analysis Total 2 | . 2 . Derelict Logs Recovered . | . . . Drone Launches . | . . . Drone Recoveries . | . . . Exploration | -11 -10 -9 ------------- Run | Jun Mat Mat Turns Passed 4735 | 39 3500 1196 Spaces Moved 1730 | 36 1263 431 Core 1 | 1 . . Treads . | . . . Legs . | . . . Wheels 1729 | 35 1263 431 Hover . | . . . Flight . | . . . Fastest Speed 50 | 50 80 140 Average Speed 145 | 79 133 189 Slowest Speed 215 | 80 200 215 Overloaded Moves . | . . . Propulsion Burnouts . | . . . Robots Hopped . | . . . Cave-ins Triggered . | . . . Exploration Rate (%) 42 | 4 96 28 Regions Visited 2 Branch Regions . Pre-discovered Areas 1 | . 1 . Known Exits Taken . | . . . Unknown Exits Taken 2 | 1 1 . Scrap Searched . | . . . Spaces Dug 50 | . 22 28 Terrain Destroyed 447 | . 278 169 Melee . | . . . Projectile . | . . . AOE 447 | . 278 169 Terrain Rammed . | . . . Walls Destroyed . | . . . Machines Disabled . | . . . Actions | -11 -10 -9 --------- Run | Jun Mat Mat Total 3584 | 43 2837 704 Wait 1573 | . 1394 179 Move 1728 | 35 1262 431 Hop . | . . . Pick Up 19 | 2 9 8 Fast Attach 12 | 5 6 1 Attach 5 | 1 . 4 Detach . | . . . Swap 35 | . 21 14 Drop 6 | . 5 1 Fire 189 | . 140 49 Melee 17 | . . 17 Ram . | . . . Kick . | . . . Crush . | . . . Escape Stasis . | . . . Rewire . | . . . Trap . | . . . Miscellaneous . | . . . Route ------- -11/Junkyard -10/Materials (discovered 4 exits: [*Mat x3] / [*Min]) -9/Materials (discovered 1 exit: [*Mat]) History --------- Turn | Location | Event 13 | -11/Junkyard | Discovered new exit (range 15) 40 | -11/Junkyard | Entered Materials 195 | -10/Materials | Discovered new exit (range 5) 312 | -10/Materials | Build established: Mutant 374 | -10/Materials | Discovered new exit (range 13) 478 | -10/Materials | System corruption reached 10% 493 | -10/Materials | Core integrity fell below 50% 611 | -10/Materials | Core integrity fell below 20% 647 | -10/Materials | Discovered new exit (range 15) 753 | -10/Materials | Discovered new exit (range 11) 3540 | -10/Materials | Entered another Materials area 3540 | -9/Materials | Evolved 2 slots: Utility x2 4203 | -9/Materials | Core integrity fell below 50% 4450 | -9/Materials | Core integrity fell below 20% 4490 | -9/Materials | Destroyed 7 combat bots 4637 | -9/Materials | Build established: Scavenger-Mutant 4719 | -9/Materials | Discovered new exit (range 16) 4736 | -9/Materials | Self-destructed Last Messages --------------- 04547_ The unstable cave ceiling collapses. 04547_ U-05 Engineer lays Concrete. 04549_ U-05 Engineer builds a Wall. 04552_ K-01 Serf collects debris. 04553_ The unstable cave ceiling collapses. 04554_ U-05 Engineer builds a Wall. 04590_ U-05 Engineer lays Concrete. 04592_ U-05 Engineer builds a Wall. 04593_ U-05 Engineer lays Concrete. 04598_ U-05 Engineer builds a Wall. 04598_ U-05 Engineer lays Concrete. 04637_ Acquired 49 matter. 04642_ Acquired 31 matter. 04644_ Acquired 35 matter. 04696_ O-16 Technician: "IFF HANDSHAKE FAILED. SECURING TERMINAL." 04696_ O-16 Technician uses terminal to summon reinforcements. 04696_ ALERT: Hostiles spotted, dispatching reinforcements to Terminal M005. 04696_ O-16 Technician locks terminal. 04719_ EXIT=FOUND Map ----- +----------------------------------------------------+ | ???##+#????????????????????????????????????????? | | ???# ????????????????????????????????????????? | | ???# ????????????????????????????????????????? | | ???# #???????????????????????????????????????? | | ???+ #???????????????????????????????????????? | | ???# #???????????????????????????????????????? | | ???# #???????????????????????????????????????? | | ???# ^ ####????????????????????????????????????? | | ???# !##???????????????????????????????????? | | #### !#???????????????????????????????????? | | ## !#???????????????????????????????????? | | ## !#???????????????????????????????????? | | ## !????????????????????????????????????? | | ## ??????????????????????????????????????? | | ## ##??????????????????????????????????????? | | # ########???????????????????????????????? | | +##[ # #???????????????????????????????? | | ! = + = #???????????????????????????????? | | ###= # #???????????????????????????????? | | ??# # """ #???????????????????????????????? | | ??####### """ #???????????????????????????????? | | ????????# """ #???????????????????????????????? | | ????????#+####+#??????####+######+####?????????? | | ???????## ##?# #??????# #?????????? | | ???????# ### ######## < #?????????? | | ???????# @ #?????????? | | ???????# #############+########+?????????????? | | ???????##+##?????????? ????????????????????? | | ???????? ????????? ??????????????????? | | ???????? ???????# || #????????????????? | | ??????? ?????# | #????????????????? | | ??????? ?????## #????????????????? | | ??????# "T" ?????# #????????????????? | | ??????# ?????# #????????????????? | | ???????######?????#############????????????????? | | | | | | | | | | | | | | | | | | | | | | | | | | | | | | | +----------------------------------------------------+ Best States ------------- Heat Dissipation 28 Energy Generation 10 Energy Capacity 250 Matter Stores 300 Matter Capacity 300 Sight Range 16 Terrain Scan Density 10 Armor Coverage 150 Power Shielding 33 Evasion (%) 44 Item Schematics ----------------- None Robot Schematics ------------------ None Fabricated ------------ Nothing Alien Tech Used ----------------- None Achievements -------------- None Challenges ------------ None Game ------ Seed CatalystOpticalMultirail Manual? 0 Play Time 00:21:59 Cumulative 237.8 hours Start 2023.05.24 @ 19:21:46 End 2023.05.24 @ 19:45:37 Sessions 1 Manual Loads 0 Difficulty Rogue Special Mode None Game No. 714 Rogue 714 Adventurer 0 Explorer 0 Win Type - Total 10 Types 8/0/1/1/0/0/0/0/0 Lore% 86 Gallery% 82 Achievement% 73 Wizard Run 0 Options --------- ASCII 0 Keyboard 0 Movement Mouse Keybinds 0 Fullscreen 1 Font 16/SmallcapsGlow Map View 75x55 Tactical HUD 1 Map Filters NONE Filters NONE Steam 1 RUN: cf84cf62-9fd9-4274-b5fd-edac63eee136